[Event "*** Titled Tuesday Blitz"]
[Site "Chess.com"]
[Date "2021.04.06"]
[Round "5"]
[White "Aygehovit1992"]
[Black "Chopper1905"]
[Result "0-1"]
[WhiteElo "2651"]
[BlackElo "2947"]
[TimeControl "180+1"]
[EndTime "10:57:40 PDT"]
[Termination "Chopper1905 won on time"]

1. e4 {[%clk 0:03:00.9]} 1... c5 {[%clk 0:02:59.6]} 2. Nf3 {[%clk 0:03:00.7]}
2... Nc6 {[%clk 0:02:59.6]} 3. Bb5 {[%clk 0:03:00.2]} 3... e6 {[%clk 0:02:59.4]}
4. O-O {[%clk 0:02:59.7]} 4... Nge7 {[%clk 0:02:59.3]} 5. c3 {[%clk 0:02:59]}
5... a6 {[%clk 0:02:55.9]} 6. Ba4 {[%clk 0:02:59.5]} 6... b5 {[%clk 0:02:47.7]}
7. Bc2 {[%clk 0:02:59.2]} 7... Bb7 {[%clk 0:02:44.6]} 8. a4 {[%clk 0:02:59.3]}
8... Ng6 {[%clk 0:02:41.5]} 9. Na3 {[%clk 0:02:48.2]} 9... b4 {[%clk 0:02:41.7]}
10. Nc4 {[%clk 0:02:47.9]} 10... Na5 {[%clk 0:02:42]} 11. Nxa5 {[%clk
0:02:33.2]} 11... Qxa5 {[%clk 0:02:42.9]} 12. d4 {[%clk 0:02:33.7]} 12... cxd4
{[%clk 0:02:38.3]} 13. cxd4 {[%clk 0:02:32.7]} 13... Be7 {[%clk 0:02:37.2]} 14.
Qd3 {[%clk 0:02:22.5]} 14... O-O {[%clk 0:02:34]} 15. Bd2 {[%clk 0:02:18.6]}
15... f5 {[%clk 0:02:31.1]} 16. exf5 {[%clk 0:02:11.8]} 16... Rxf5 {[%clk
0:02:32]} 17. Ne5 {[%clk 0:02:04.7]} 17... Qd5 {[%clk 0:01:55.6]} 18. Qg3 {[%clk
0:01:00.2]} 18... Nxe5 {[%clk 0:00:58.4]} 19. Bxf5 {[%clk 0:00:58.6]} 19... Nc4
{[%clk 0:00:57.9]} 20. Bh6 {[%clk 0:00:54.6]} 20... Qxd4 {[%clk 0:00:43.4]} 21.
Rad1 {[%clk 0:00:50.4]} 21... Qf6 {[%clk 0:00:33.2]} 22. Rxd7 {[%clk 0:00:41.4]}
22... Bd5 {[%clk 0:00:18]} 23. Rxd5 {[%clk 0:00:18.5]} 23... exd5 {[%clk
0:00:13.6]} 24. Be6+ {[%clk 0:00:18.4]} 24... Kh8 {[%clk 0:00:14.3]} 25. Bxd5
{[%clk 0:00:18.4]} 25... Rc8 {[%clk 0:00:11.4]} 26. Bxc4 {[%clk 0:00:13.3]}
26... Rxc4 {[%clk 0:00:12.3]} 27. Be3 {[%clk 0:00:06.3]} 27... Bd6 {[%clk
0:00:10.3]} 28. Qh3 {[%clk 0:00:03.6]} 28... h6 {[%clk 0:00:05.7]} 29. Rd1
{[%clk 0:00:03.8]} 29... Qxb2 {[%clk 0:00:04.3]} 30. Qe6 {[%clk 0:00:03.4]}
30... Qc2 {[%clk 0:00:01.7]} 0-1

[Event "*** Titled Tuesday Blitz"]
[Site "Chess.com"]
[Date "2021.04.06"]
[Round "5"]
[White "monikarozman"]
[Black "Keures"]
[Result "0-1"]
[WhiteElo "2208"]
[BlackElo "2357"]
[TimeControl "180+1"]
[EndTime "10:57:40 PDT"]
[Termination "Keures won on time"]

1. d4 {[%clk 0:02:31.1]} 1... Nf6 {[%clk 0:02:59]} 2. c4 {[%clk 0:02:26.9]} 2...
e6 {[%clk 0:02:58.6]} 3. Nc3 {[%clk 0:02:26.5]} 3... Bb4 {[%clk 0:02:56.1]} 4.
e3 {[%clk 0:02:24.2]} 4... O-O {[%clk 0:02:54.3]} 5. Ne2 {[%clk 0:02:24.2]} 5...
Re8 {[%clk 0:02:49.2]} 6. a3 {[%clk 0:02:22.8]} 6... Bf8 {[%clk 0:02:48.4]} 7.
Ng3 {[%clk 0:02:23.2]} 7... d5 {[%clk 0:02:48.2]} 8. cxd5 {[%clk 0:02:20.2]}
8... exd5 {[%clk 0:02:48.1]} 9. Bd3 {[%clk 0:02:19.1]} 9... c5 {[%clk
0:02:45.2]} 10. O-O {[%clk 0:02:15.4]} 10... cxd4 {[%clk 0:02:43.9]} 11. exd4
{[%clk 0:02:14.8]} 11... h6 {[%clk 0:02:43.9]} 12. Bf4 {[%clk 0:01:58.7]} 12...
Nc6 {[%clk 0:02:43.3]} 13. Bb5 {[%clk 0:01:45]} 13... Bd6 {[%clk 0:02:28.7]} 14.
Bxd6 {[%clk 0:01:42.3]} 14... Qxd6 {[%clk 0:02:29.6]} 15. Qd3 {[%clk 0:01:38.2]}
15... Bd7 {[%clk 0:02:20.7]} 16. Rad1 {[%clk 0:01:30.4]} 16... Ne7 {[%clk
0:02:16.1]} 17. Na4 {[%clk 0:01:20.9]} 17... b6 {[%clk 0:02:11.2]} 18. Nc3
{[%clk 0:01:07.9]} 18... Ng6 {[%clk 0:02:10]} 19. Nf5 {[%clk 0:00:56.5]} 19...
Qb8 {[%clk 0:01:42.5]} 20. g3 {[%clk 0:00:46.7]} 20... Bxb5 {[%clk 0:01:31.9]}
21. Nxb5 {[%clk 0:00:43.6]} 21... Ne4 {[%clk 0:01:25.1]} 22. Nc3 {[%clk
0:00:40.7]} 22... Qb7 {[%clk 0:01:13.1]} 23. f3 {[%clk 0:00:21.9]} 23... Nxc3
{[%clk 0:01:10.7]} 24. Qxc3 {[%clk 0:00:22.1]} 24... Qd7 {[%clk 0:01:07.9]} 25.
Ne3 {[%clk 0:00:19.2]} 25... Rac8 {[%clk 0:01:05.3]} 26. Qd3 {[%clk 0:00:19.1]}
26... Re7 {[%clk 0:00:58.1]} 27. Nf5 {[%clk 0:00:18.1]} 27... Re6 {[%clk
0:00:53.1]} 28. Rfe1 {[%clk 0:00:18.1]} 28... Rce8 {[%clk 0:00:51.4]} 29. Rxe6
{[%clk 0:00:17.4]} 29... Qxe6 {[%clk 0:00:52.3]} 30. Kf2 {[%clk 0:00:17.4]}
30... Nf8 {[%clk 0:00:44.3]} 31. g4 {[%clk 0:00:14.2]} 31... Ng6 {[%clk
0:00:41.5]} 32. Ne3 {[%clk 0:00:11.4]} 32... Nf4 {[%clk 0:00:39.7]} 33. Qd2
{[%clk 0:00:11.3]} 33... Qf6 {[%clk 0:00:26.7]} 34. Re1 {[%clk 0:00:07.3]} 34...
Qh4+ {[%clk 0:00:20]} 35. Kf1 {[%clk 0:00:05.8]} 35... Qh3+ {[%clk 0:00:16.6]}
36. Kf2 {[%clk 0:00:05.5]} 36... Qxh2+ {[%clk 0:00:15.7]} 0-1

[Event "*** Titled Tuesday Blitz"]
[Site "Chess.com"]
[Date "2021.04.06"]
[Round "5"]
[White "jefferyx"]
[Black "dretch"]
[Result "1-0"]
[WhiteElo "2980"]
[BlackElo "2815"]
[TimeControl "180+1"]
[EndTime "10:57:42 PDT"]
[Termination "jefferyx won by resignation"]

1. e4 {[%clk 0:03:00.9]} 1... e6 {[%clk 0:03:00.1]} 2. d4 {[%clk 0:03:00.7]}
2... d5 {[%clk 0:03:00.6]} 3. exd5 {[%clk 0:03:01.6]} 3... exd5 {[%clk
0:03:00.6]} 4. Nf3 {[%clk 0:03:02.5]} 4... Bd6 {[%clk 0:03:00.2]} 5. c4 {[%clk
0:03:03]} 5... Nf6 {[%clk 0:02:59.9]} 6. c5 {[%clk 0:03:02]} 6... Be7 {[%clk
0:02:59.4]} 7. Bd3 {[%clk 0:03:02.9]} 7... O-O {[%clk 0:02:56.8]} 8. O-O {[%clk
0:03:03.3]} 8... b6 {[%clk 0:02:57.3]} 9. Be3 {[%clk 0:03:03.9]} 9... bxc5
{[%clk 0:02:52.9]} 10. dxc5 {[%clk 0:03:04.8]} 10... Na6 {[%clk 0:02:53.3]} 11.
Bxa6 {[%clk 0:02:51.9]} 11... Bxa6 {[%clk 0:02:51.5]} 12. Re1 {[%clk 0:02:52.8]}
12... Re8 {[%clk 0:02:46.6]} 13. Nbd2 {[%clk 0:02:51.8]} 13... Qd7 {[%clk
0:02:39.9]} 14. Rc1 {[%clk 0:02:43.2]} 14... Bf8 {[%clk 0:02:37]} 15. h3 {[%clk
0:02:38.4]} 15... Qb5 {[%clk 0:02:34]} 16. Nb3 {[%clk 0:02:36.8]} 16... Rad8
{[%clk 0:02:28.4]} 17. Nfd4 {[%clk 0:02:36.5]} 17... Qa4 {[%clk 0:02:22.7]} 18.
Nd2 {[%clk 0:02:18.9]} 18... Qxd1 {[%clk 0:01:59.7]} 19. Rexd1 {[%clk
0:02:19.8]} 19... Rb8 {[%clk 0:01:59.4]} 20. b3 {[%clk 0:01:53]} 20... Ne4
{[%clk 0:01:48.3]} 21. Nxe4 {[%clk 0:01:45.2]} 21... dxe4 {[%clk 0:01:19.5]} 22.
Nc6 {[%clk 0:01:44.9]} 22... Rbc8 {[%clk 0:01:18.1]} 23. Nxa7 {[%clk 0:01:41.7]}
23... Ra8 {[%clk 0:01:17.5]} 24. Nc6 {[%clk 0:01:42.6]} 24... Bb5 {[%clk
0:01:03.3]} 25. Nb4 {[%clk 0:01:41.2]} 25... Reb8 {[%clk 0:01:02.1]} 26. Rd4
{[%clk 0:01:40.2]} 26... f5 {[%clk 0:01:00.7]} 27. Bf4 {[%clk 0:01:33.2]} 27...
Rb7 {[%clk 0:00:55.8]} 28. c6 {[%clk 0:01:20.9]} 28... Rba7 {[%clk 0:00:40.4]}
29. a4 {[%clk 0:01:06]} 29... Be2 {[%clk 0:00:39.2]} 30. Nd5 {[%clk 0:01:01]}
30... Rc8 {[%clk 0:00:34.9]} 31. Bxc7 {[%clk 0:00:51.3]} 31... Ba3 {[%clk
0:00:16.7]} 32. Bb6 {[%clk 0:00:40.2]} 32... Rf7 {[%clk 0:00:10.6]} 33. Rc3
{[%clk 0:00:30.3]} 33... Bb2 {[%clk 0:00:09.6]} 34. c7 {[%clk 0:00:29.8]} 34...
Bxc3 {[%clk 0:00:09.7]} 35. Nxc3 {[%clk 0:00:29.8]} 35... Ba6 {[%clk 0:00:10.4]}
36. Rd8+ {[%clk 0:00:24]} 36... Rf8 {[%clk 0:00:09.6]} 37. b4 {[%clk 0:00:23.7]}
37... Kf7 {[%clk 0:00:09.2]} 38. b5 {[%clk 0:00:23.8]} 38... Bb7 {[%clk
0:00:09.3]} 39. a5 {[%clk 0:00:24.2]} 39... Ke7 {[%clk 0:00:08.5]} 40. Bc5+
{[%clk 0:00:24.1]} 40... Ke6 {[%clk 0:00:08]} 41. Bxf8 {[%clk 0:00:20.8]} 41...
Rxc7 {[%clk 0:00:08.5]} 42. a6 {[%clk 0:00:20.1]} 42... Bxa6 {[%clk 0:00:07.2]}
43. bxa6 {[%clk 0:00:20.1]} 43... Rxc3 {[%clk 0:00:07.8]} 44. a7 {[%clk
0:00:20.5]} 1-0

[Event "*** Titled Tuesday Blitz"]
[Site "Chess.com"]
[Date "2021.04.06"]
[Round "5"]
[White "TengisChess"]
[Black "Margency"]
[Result "0-1"]
[WhiteElo "2506"]
[BlackElo "2724"]
[TimeControl "180+1"]
[EndTime "10:57:43 PDT"]
[Termination "Margency won by resignation"]

1. e4 {[%clk 0:02:49.1]} 1... c5 {[%clk 0:03:00]} 2. Nf3 {[%clk 0:02:48]} 2...
d6 {[%clk 0:03:00.5]} 3. Nc3 {[%clk 0:02:45.7]} 3... Nf6 {[%clk 0:03:00.3]} 4.
d4 {[%clk 0:02:45.7]} 4... cxd4 {[%clk 0:03:01.2]} 5. Nxd4 {[%clk 0:02:46]} 5...
a6 {[%clk 0:03:01.5]} 6. Bg5 {[%clk 0:02:33.4]} 6... e6 {[%clk 0:03:01.3]} 7. f4
{[%clk 0:02:32.3]} 7... Qb6 {[%clk 0:03:01.1]} 8. Nb3 {[%clk 0:02:30.1]} 8...
Nbd7 {[%clk 0:03:00.1]} 9. Bd3 {[%clk 0:02:29.5]} 9... Be7 {[%clk 0:02:59.5]}
10. Qe2 {[%clk 0:02:29.3]} 10... Qc7 {[%clk 0:02:58.9]} 11. O-O-O {[%clk
0:02:29]} 11... b5 {[%clk 0:02:59]} 12. Rhe1 {[%clk 0:02:28.8]} 12... b4 {[%clk
0:02:56.9]} 13. Nd5 {[%clk 0:02:20.8]} 13... exd5 {[%clk 0:02:55.2]} 14. exd5
{[%clk 0:02:20.8]} 14... Nb6 {[%clk 0:02:52.4]} 15. Bxf6 {[%clk 0:02:18.5]}
15... gxf6 {[%clk 0:02:53.3]} 16. Nd4 {[%clk 0:02:16.7]} 16... Nxd5 {[%clk
0:02:19.7]} 17. Be4 {[%clk 0:01:55.9]} 17... Nxf4 {[%clk 0:02:15.2]} 18. Bc6+
{[%clk 0:01:52]} 18... Kf8 {[%clk 0:02:13]} 19. Qd2 {[%clk 0:01:50.1]} 19... d5
{[%clk 0:01:39.4]} 20. Bxa8 {[%clk 0:01:47.1]} 20... Bg4 {[%clk 0:01:39.4]} 21.
Nc6 {[%clk 0:01:27.4]} 21... Bd6 {[%clk 0:01:31.5]} 22. Nxb4 {[%clk 0:00:43.1]}
22... Bxd1 {[%clk 0:01:23.2]} 23. Rxd1 {[%clk 0:00:43.7]} 23... Kg7 {[%clk
0:01:12.7]} 24. Bxd5 {[%clk 0:00:40.2]} 24... Bxb4 {[%clk 0:01:07.5]} 25. Qxb4
{[%clk 0:00:39]} 25... Rc8 {[%clk 0:01:07.9]} 26. Bb3 {[%clk 0:00:34.6]} 26...
a5 {[%clk 0:00:53.9]} 27. Qe4 {[%clk 0:00:34.3]} 27... Rb8 {[%clk 0:00:34.3]}
28. g3 {[%clk 0:00:33.6]} 28... Ng6 {[%clk 0:00:33.5]} 29. Kb1 {[%clk
0:00:31.7]} 29... Ne5 {[%clk 0:00:32.2]} 30. Rf1 {[%clk 0:00:29.6]} 30... Rb4
{[%clk 0:00:30.1]} 31. Qf5 {[%clk 0:00:29.3]} 31... Qd6 {[%clk 0:00:29]} 32. a3
{[%clk 0:00:26.3]} 32... Rd4 {[%clk 0:00:26.5]} 33. a4 {[%clk 0:00:22.1]} 33...
h6 {[%clk 0:00:23.7]} 34. h3 {[%clk 0:00:21.4]} 34... Rd1+ {[%clk 0:00:17.8]}
35. Ka2 {[%clk 0:00:21]} 35... Rxf1 {[%clk 0:00:17.5]} 36. Qxf1 {[%clk
0:00:21.9]} 36... Qd4 {[%clk 0:00:17]} 37. g4 {[%clk 0:00:21.3]} 37... Qe3
{[%clk 0:00:16.8]} 38. c3 {[%clk 0:00:20.2]} 38... Nd3 {[%clk 0:00:16.3]} 39.
Qf5 {[%clk 0:00:16.2]} 39... Nc1+ {[%clk 0:00:15.4]} 40. Ka3 {[%clk 0:00:16.5]}
40... Qe7+ {[%clk 0:00:16]} 0-1

[Event "*** Titled Tuesday Blitz"]
[Site "Chess.com"]
[Date "2021.04.06"]
[Round "5"]
[White "Annagozel"]
[Black "Rafael_Ventura"]
[Result "0-1"]
[WhiteElo "1807"]
[BlackElo "2171"]
[TimeControl "180+1"]
[EndTime "10:57:44 PDT"]
[Termination "Rafael_Ventura won on time"]

1. e4 {[%clk 0:03:00.9]} 1... c5 {[%clk 0:02:59]} 2. Nf3 {[%clk 0:02:58.5]} 2...
d6 {[%clk 0:02:59.1]} 3. d4 {[%clk 0:02:56.5]} 3... cxd4 {[%clk 0:03:00]} 4.
Nxd4 {[%clk 0:02:55.4]} 4... Nf6 {[%clk 0:02:59.6]} 5. Nc3 {[%clk 0:02:53.4]}
5... a6 {[%clk 0:02:59.7]} 6. Bg5 {[%clk 0:02:51.6]} 6... e6 {[%clk 0:02:59.7]}
7. Qe2 {[%clk 0:02:44.6]} 7... Nbd7 {[%clk 0:02:58.1]} 8. O-O-O {[%clk
0:02:43.1]} 8... Qc7 {[%clk 0:02:57.6]} 9. f4 {[%clk 0:02:41.2]} 9... Be7 {[%clk
0:02:52.7]} 10. g4 {[%clk 0:02:37.9]} 10... b5 {[%clk 0:02:48.2]} 11. Bg2 {[%clk
0:02:32.2]} 11... Bb7 {[%clk 0:02:47.9]} 12. e5 {[%clk 0:01:45.4]} 12... dxe5
{[%clk 0:02:08.8]} 13. fxe5 {[%clk 0:01:40.1]} 13... Ng8 {[%clk 0:01:59.8]} 14.
Bxe7 {[%clk 0:01:35.8]} 14... Nxe7 {[%clk 0:01:59.7]} 15. Ndxb5 {[%clk
0:01:30.5]} 15... axb5 {[%clk 0:01:44.6]} 16. Nxb5 {[%clk 0:01:28.5]} 16... Qxe5
{[%clk 0:01:33.4]} 17. Qxe5 {[%clk 0:01:21.7]} 17... Nxe5 {[%clk 0:01:32.5]} 18.
Nd6+ {[%clk 0:01:19.3]} 18... Kf8 {[%clk 0:01:31.8]} 19. Bxb7 {[%clk 0:01:18.8]}
19... Rb8 {[%clk 0:01:30.1]} 20. a4 {[%clk 0:01:08.2]} 20... N7c6 {[%clk
0:01:19.4]} 21. Rhf1 {[%clk 0:01:03.5]} 21... f6 {[%clk 0:01:14.9]} 22. c3
{[%clk 0:00:50.1]} 22... Ke7 {[%clk 0:01:12.5]} 23. b4 {[%clk 0:00:46.9]} 23...
Rhd8 {[%clk 0:01:09.1]} 24. Bxc6 {[%clk 0:00:44.3]} 24... Rxd6 {[%clk
0:01:05.8]} 25. Rxd6 {[%clk 0:00:42.2]} 25... Kxd6 {[%clk 0:01:06.2]} 26. Be4
{[%clk 0:00:39.7]} 26... Nxg4 {[%clk 0:01:03.4]} 27. a5 {[%clk 0:00:34.2]} 27...
f5 {[%clk 0:01:02.8]} 28. Bg2 {[%clk 0:00:29.5]} 28... Ne3 {[%clk 0:01:02.2]}
29. Rf2 {[%clk 0:00:26.6]} 29... g5 {[%clk 0:01:01.1]} 30. Rd2+ {[%clk
0:00:25.9]} 30... Ke5 {[%clk 0:01:01]} 31. a6 {[%clk 0:00:22.4]} 31... Nxg2
{[%clk 0:00:53.6]} 32. Rxg2 {[%clk 0:00:21.5]} 32... g4 {[%clk 0:00:53.9]} 33.
Kd2 {[%clk 0:00:20.8]} 33... h6 {[%clk 0:00:53.5]} 34. Ke2 {[%clk 0:00:18.6]}
34... h5 {[%clk 0:00:53.7]} 35. h3 {[%clk 0:00:17.6]} 35... Kf4 {[%clk
0:00:53.5]} 36. hxg4 {[%clk 0:00:15.7]} 36... hxg4 {[%clk 0:00:54.1]} 37. Kf2
{[%clk 0:00:14.8]} 37... Kg5 {[%clk 0:00:54.2]} 38. Rg1 {[%clk 0:00:12.2]} 38...
f4 {[%clk 0:00:54.6]} 39. Rb1 {[%clk 0:00:11.5]} 39... g3+ {[%clk 0:00:53.2]}
40. Kf3 {[%clk 0:00:11.4]} 40... Kf5 {[%clk 0:00:53.6]} 41. b5 {[%clk
0:00:10.3]} 41... e5 {[%clk 0:00:54.3]} 42. a7 {[%clk 0:00:09.8]} 42... e4+
{[%clk 0:00:55.2]} 43. Kg2 {[%clk 0:00:09.4]} 43... Rh8 {[%clk 0:00:52.9]} 44.
b6 {[%clk 0:00:07]} 44... Kg4 {[%clk 0:00:53.1]} 45. b7 {[%clk 0:00:05.7]} 45...
f3+ {[%clk 0:00:53.8]} 46. Kg1 {[%clk 0:00:05.1]} 46... f2+ {[%clk 0:00:54.2]}
47. Kf1 {[%clk 0:00:03.3]} 47... Rh1+ {[%clk 0:00:54.3]} 48. Ke2 {[%clk
0:00:03]} 48... Rxb1 {[%clk 0:00:53.9]} 49. b8=Q {[%clk 0:00:01.5]} 49... f1=Q+
{[%clk 0:00:53.9]} 0-1

[Event "*** Titled Tuesday Blitz"]
[Site "Chess.com"]
[Date "2021.04.06"]
[Round "5"]
[White "Valeron87"]
[Black "HouseOfDurin"]
[Result "0-1"]
[WhiteElo "2307"]
[BlackElo "2169"]
[TimeControl "180+1"]
[EndTime "10:57:45 PDT"]
[Termination "HouseOfDurin won by resignation"]

1. e4 {[%clk 0:03:00.9]} 1... c5 {[%clk 0:02:58.9]} 2. Nf3 {[%clk 0:03:00]} 2...
Nc6 {[%clk 0:02:58.7]} 3. d4 {[%clk 0:02:58.8]} 3... cxd4 {[%clk 0:02:59.2]} 4.
Nxd4 {[%clk 0:02:58.8]} 4... e5 {[%clk 0:02:59.8]} 5. Nb5 {[%clk 0:02:58.2]}
5... d6 {[%clk 0:02:59.8]} 6. c4 {[%clk 0:02:56.5]} 6... Be6 {[%clk 0:02:58.4]}
7. N5c3 {[%clk 0:02:51.5]} 7... Nf6 {[%clk 0:02:56.9]} 8. Bd3 {[%clk 0:02:48.7]}
8... Rc8 {[%clk 0:02:52.5]} 9. O-O {[%clk 0:02:47.9]} 9... Be7 {[%clk
0:02:51.6]} 10. Na3 {[%clk 0:02:47.7]} 10... O-O {[%clk 0:02:48.3]} 11. Nc2
{[%clk 0:02:43.6]} 11... a6 {[%clk 0:02:43]} 12. Be3 {[%clk 0:02:40.8]} 12...
Na5 {[%clk 0:02:42]} 13. b3 {[%clk 0:02:16.4]} 13... b5 {[%clk 0:02:41.5]} 14.
Nd5 {[%clk 0:02:13.8]} 14... bxc4 {[%clk 0:02:20.2]} 15. Bb6 {[%clk 0:02:08.8]}
15... Qd7 {[%clk 0:02:20.1]} 16. Nxe7+ {[%clk 0:01:58.8]} 16... Qxe7 {[%clk
0:02:19.3]} 17. Bxa5 {[%clk 0:01:59.3]} 17... cxd3 {[%clk 0:02:18.6]} 18. Qxd3
{[%clk 0:01:59.8]} 18... d5 {[%clk 0:02:16]} 19. Bb4 {[%clk 0:01:52.6]} 19...
dxe4 {[%clk 0:02:11.2]} 20. Qxa6 {[%clk 0:01:18.7]} 20... Qc7 {[%clk 0:01:27]}
21. Bxf8 {[%clk 0:01:17]} 21... Kxf8 {[%clk 0:01:18.1]} 22. Ne3 {[%clk
0:01:16.6]} 22... Nd7 {[%clk 0:01:02.2]} 23. Qa3+ {[%clk 0:01:15.4]} 23... Kg8
{[%clk 0:00:49.1]} 24. Rac1 {[%clk 0:01:15.6]} 24... Qb7 {[%clk 0:00:49.1]} 25.
Rxc8+ {[%clk 0:01:14.8]} 25... Qxc8 {[%clk 0:00:50]} 26. Rc1 {[%clk 0:01:14.7]}
26... Qb7 {[%clk 0:00:38]} 27. Qd6 {[%clk 0:01:14.3]} 27... g6 {[%clk
0:00:30.6]} 28. Rc7 {[%clk 0:01:07.4]} 28... Qb5 {[%clk 0:00:29.8]} 29. g3
{[%clk 0:01:03.6]} 29... Bh3 {[%clk 0:00:22.2]} 30. Qd2 {[%clk 0:00:45.3]} 30...
Nc5 {[%clk 0:00:14.4]} 31. Nc4 {[%clk 0:00:39.7]} 31... Nd3 {[%clk 0:00:13.5]}
32. Re7 {[%clk 0:00:37]} 32... f6 {[%clk 0:00:12.2]} 33. Qe3 {[%clk 0:00:35.1]}
33... Qb4 {[%clk 0:00:09.8]} 34. Qd2 {[%clk 0:00:33.8]} 34... Qxe7 {[%clk
0:00:09.4]} 35. a4 {[%clk 0:00:30]} 35... Qc5 {[%clk 0:00:08.4]} 36. a5 {[%clk
0:00:29.6]} 36... Qc6 {[%clk 0:00:07]} 37. Qe3 {[%clk 0:00:28.6]} 37... f5
{[%clk 0:00:06.2]} 38. Qa7 {[%clk 0:00:24]} 38... f4 {[%clk 0:00:05.9]} 39. Qb8+
{[%clk 0:00:22.2]} 39... Kg7 {[%clk 0:00:05.5]} 40. Qxe5+ {[%clk 0:00:21.5]}
40... Nxe5 {[%clk 0:00:05]} 0-1

[Event "*** Titled Tuesday Blitz"]
[Site "Chess.com"]
[Date "2021.04.06"]
[Round "5"]
[White "annacramling"]
[Black "tteshan"]
[Result "1-0"]
[WhiteElo "2086"]
[BlackElo "2308"]
[TimeControl "180+1"]
[EndTime "10:57:47 PDT"]
[Termination "annacramling won by checkmate"]

1. d4 {[%clk 0:03:00.9]} 1... Nf6 {[%clk 0:02:59.4]} 2. c4 {[%clk 0:02:59.7]}
2... e6 {[%clk 0:02:59.8]} 3. Nc3 {[%clk 0:02:59]} 3... b6 {[%clk 0:02:59.8]} 4.
e4 {[%clk 0:02:58.1]} 4... Bb7 {[%clk 0:03:00]} 5. Qc2 {[%clk 0:02:51]} 5... d6
{[%clk 0:03:00.3]} 6. Nf3 {[%clk 0:02:50.2]} 6... Nbd7 {[%clk 0:03:00.5]} 7. Bg5
{[%clk 0:02:42.2]} 7... Be7 {[%clk 0:02:58.5]} 8. Be2 {[%clk 0:02:35.9]} 8... h6
{[%clk 0:02:58.7]} 9. Bh4 {[%clk 0:02:34.8]} 9... g5 {[%clk 0:02:57.4]} 10. Bg3
{[%clk 0:02:34.5]} 10... Nh5 {[%clk 0:02:58.1]} 11. O-O-O {[%clk 0:01:55.2]}
11... Nf4 {[%clk 0:02:50.3]} 12. Bxf4 {[%clk 0:01:48.8]} 12... gxf4 {[%clk
0:02:50.6]} 13. e5 {[%clk 0:01:45.7]} 13... Nf8 {[%clk 0:02:27.2]} 14. h4 {[%clk
0:01:39.3]} 14... Rg8 {[%clk 0:02:21.2]} 15. Rhg1 {[%clk 0:01:22.2]} 15... Bxh4
{[%clk 0:02:12]} 16. Nxh4 {[%clk 0:01:20]} 16... Qxh4 {[%clk 0:02:12.9]} 17. Ne4
{[%clk 0:01:15.9]} 17... O-O-O {[%clk 0:01:49.4]} 18. Bf3 {[%clk 0:01:04.3]}
18... d5 {[%clk 0:01:39.1]} 19. cxd5 {[%clk 0:01:03.3]} 19... Bxd5 {[%clk
0:01:39.1]} 20. Nf6 {[%clk 0:00:49.2]} 20... Bxf3 {[%clk 0:01:36.8]} 21. gxf3
{[%clk 0:00:39]} 21... Rxg1 {[%clk 0:01:35.6]} 22. Rxg1 {[%clk 0:00:38.5]} 22...
Nd7 {[%clk 0:01:14.3]} 23. Nxd7 {[%clk 0:00:17.3]} 23... Kxd7 {[%clk 0:01:09.9]}
24. Qa4+ {[%clk 0:00:16.3]} 24... Ke7 {[%clk 0:00:57.9]} 25. Qb4+ {[%clk
0:00:15.7]} 25... c5 {[%clk 0:00:55.1]} 26. dxc5 {[%clk 0:00:15.9]} 26... Rc8
{[%clk 0:00:55.2]} 27. Kb1 {[%clk 0:00:13.8]} 27... Rxc5 {[%clk 0:00:53.4]} 28.
Qd4 {[%clk 0:00:08.2]} 28... Rd5 {[%clk 0:00:49.2]} 29. Qb4+ {[%clk 0:00:08.2]}
29... Rc5 {[%clk 0:00:43.9]} 30. Qd4 {[%clk 0:00:04.4]} 30... Rd5 {[%clk
0:00:24]} 31. Qb4+ {[%clk 0:00:04.2]} 31... Kd7 {[%clk 0:00:21.3]} 32. Qa4+
{[%clk 0:00:04.2]} 32... Ke7 {[%clk 0:00:15]} 33. Qxa7+ {[%clk 0:00:01.9]} 33...
Rd7 {[%clk 0:00:15.4]} 34. Qxb6 {[%clk 0:00:02.1]} 34... Qh2 {[%clk 0:00:13.6]}
35. Qc5+ {[%clk 0:00:01.8]} 35... Rd6 {[%clk 0:00:04.8]} 36. Qxd6+ {[%clk
0:00:01.4]} 36... Ke8 {[%clk 0:00:05.1]} 37. Rg8# {[%clk 0:00:01.9]} 1-0

[Event "*** Titled Tuesday Blitz"]
[Site "Chess.com"]
[Date "2021.04.06"]
[Round "5"]
[White "malakismayil"]
[Black "enriquetejedor"]
[Result "0-1"]
[WhiteElo "2296"]
[BlackElo "2588"]
[TimeControl "180+1"]
[EndTime "10:57:48 PDT"]
[Termination "enriquetejedor won by checkmate"]

1. e4 {[%clk 0:02:39.6]} 1... Nc6 {[%clk 0:02:52.8]} 2. Nc3 {[%clk 0:02:36.1]}
2... g6 {[%clk 0:02:33.2]} 3. d4 {[%clk 0:02:34.4]} 3... Bg7 {[%clk 0:02:25.7]}
4. Nge2 {[%clk 0:02:30.4]} 4... d6 {[%clk 0:02:16]} 5. Be3 {[%clk 0:02:17.6]}
5... e5 {[%clk 0:02:03.6]} 6. d5 {[%clk 0:02:03]} 6... Nce7 {[%clk 0:02:00.2]}
7. g3 {[%clk 0:02:01.6]} 7... f5 {[%clk 0:01:47.7]} 8. Qd2 {[%clk 0:01:52.9]}
8... Nf6 {[%clk 0:01:39.7]} 9. f3 {[%clk 0:01:52]} 9... c6 {[%clk 0:01:29.8]}
10. dxc6 {[%clk 0:01:42.3]} 10... bxc6 {[%clk 0:01:28.5]} 11. O-O-O {[%clk
0:01:24.8]} 11... d5 {[%clk 0:01:22.9]} 12. f4 {[%clk 0:01:20.7]} 12... Nxe4
{[%clk 0:01:11.4]} 13. Nxe4 {[%clk 0:01:18]} 13... fxe4 {[%clk 0:01:10.3]} 14.
fxe5 {[%clk 0:01:02.5]} 14... Bxe5 {[%clk 0:01:11.2]} 15. Bd4 {[%clk 0:01:00.8]}
15... Qd6 {[%clk 0:01:04.6]} 16. Bg2 {[%clk 0:00:54]} 16... O-O {[%clk
0:01:03.6]} 17. Qc3 {[%clk 0:00:44.6]} 17... Bxd4 {[%clk 0:01:00.9]} 18. Nxd4
{[%clk 0:00:45]} 18... Bg4 {[%clk 0:00:59.9]} 19. Rd2 {[%clk 0:00:41.1]} 19...
c5 {[%clk 0:00:56.1]} 20. Nb3 {[%clk 0:00:38.1]} 20... Rac8 {[%clk 0:00:52]} 21.
Bxe4 {[%clk 0:00:35.7]} 21... c4 {[%clk 0:00:46.2]} 22. Na5 {[%clk 0:00:22.7]}
22... Qc5 {[%clk 0:00:18.6]} 23. Bg2 {[%clk 0:00:22.5]} 23... Rf7 {[%clk
0:00:10.5]} 24. h3 {[%clk 0:00:21.8]} 24... Bd7 {[%clk 0:00:08.6]} 25. Re1
{[%clk 0:00:21]} 25... Rcf8 {[%clk 0:00:07.2]} 26. Rxe7 {[%clk 0:00:12.6]} 26...
Qxe7 {[%clk 0:00:02.3]} 27. Bxd5 {[%clk 0:00:11.9]} 27... Be6 {[%clk 0:00:02.5]}
28. Bg2 {[%clk 0:00:08.8]} 28... Rf6 {[%clk 0:00:01.6]} 29. Rd1 {[%clk
0:00:06.6]} 29... Rf2 {[%clk 0:00:01.5]} 30. Be4 {[%clk 0:00:06.2]} 30... R2f6
{[%clk 0:00:01]} 31. Nxc4 {[%clk 0:00:05.5]} 31... Qf7 {[%clk 0:00:01.4]} 32.
Ne5 {[%clk 0:00:04.8]} 32... Qg7 {[%clk 0:00:01.8]} 33. Kb1 {[%clk 0:00:02.7]}
33... Kh8 {[%clk 0:00:02.3]} 34. Nd3 {[%clk 0:00:02.7]} 34... Bg8 {[%clk
0:00:02.6]} 35. Bg2 {[%clk 0:00:02.6]} 35... Qf7 {[%clk 0:00:03]} 36. Rc1 {[%clk
0:00:02.9]} 36... Qxa2# {[%clk 0:00:03.2]} 0-1